Cogmind - Beta 17 @@@ ROGUE MODE // 2026.06.23 @ 16:48:55 Player: f3-rnm Result: Destroyed by H-77 Assassin with Coil Gun Performance ------------- Evolutions (7) 3500 Regions Visited (12) 2400 Robots Destroyed (99) 495 Value Destroyed (4092) 4092 Prototype IDs (60) 1200 Alien Tech Used (11) 2200 Bonus (15336) 15336 TOTAL SCORE: 29223 Bonus ------- Follower Combat Kills 48 Prayed to X0-1V1 5000 Major X0-1V1 Interference 6400 Registered with UFD 300 Met Optimus in HQ 500 Met Zhirov 300 Used Core Reset Matrix 3000 Scanned by Researcher 500 Pursued by Intercept 500 Friendly Fire -1212 Cogmind --------- Core Integrity 0/1650 Matter 591/1400 Energy 348/350 System Corruption 0% Temperature Cool (0) +ITN Movement Core (50) Location -3/Section 7 Parts ------- > --- POWER (3) -------- (None) > --- PROPULSION (6) --- (None) > --- UTILITY (8) ------ (None) > --- WEAPON (6) ------- Chaos Jack > --- INVENTORY (5) ---- Faulty Femtoactuators Improved Transmission Jammer Vibroblade Heavy Scimitar of Distortion Heavy Scimitar of Distortion Peak State ------------ > --- POWER ------------ Micro Antimatter Reactor Cooled Antimatter Reactor > --- PROPULSION ------- Linear Gravjet Improved Antigrav System Improved Antigrav System Improved Antigrav System Improved Antigrav System Antigrav Array > --- UTILITY ---------- Advanced Heat Sink Advanced Heat Sink Medium Storage Unit Advanced Sensor Array Advanced Signal Interpreter Advanced Target Analyzer X0-1V1's Piety Tracker X0-1V1's Piety Tracker > --- WEAPON ----------- Ionic Axe Vibroblade Vibroblade Sigix Broadsword > --- INVENTORY -------- Advanced Actuator Array Improved Transmission Jammer Improved Reaction Control System Improved Utility Shielding Dimensional Node Initializer Transdimensional Reconstructor Transdimensional Reconstructor Chaos Jack Large Botcube [Rating: 181] Favorites ----------- Power Ion Engine Engine Ion Engine Power Core Nuclear Core Reactor Cooled Antimatter Reactor Propulsion Light Treads Treads Light Treads Leg Enhanced Flexi-carbon Leg Wheel Wheel Hover Unit Improved Antigrav System Flight Unit Cooled Nuclear Pulse Thruster Utility X0-1V1's Piety Tracker Device X0-1V1's Piety Tracker Storage Huge Storage Unit Processor Advanced Signal Interpreter Hackware Advanced Hacking Suite Protection Makeshift Propulsion Shielding Artifact Microwarp Drive Weapon Particle Gun Energy Gun Particle Gun Energy Cannon Ion Burst Cannon Ballistic Gun Advanced KE Penetrator Ballistic Cannon Light Cannon Launcher Rocket Launcher Special Weapon Molecular Deconstructor Impact Weapon Great Maul Slashing Weapon Vibroblade Piercing Weapon Lance Special Melee Weapon Chaos Jack Build | -11 -10 -10 -7 -5 -5 -5 -5 -4 -4 -3 -3 -3 ------- Run | Yrd Mat Sub Scr Fac Upp Upp Zhi Pro Fac Res Qua Sec Slots Evolved 14 | . . . . 10 . . . . 2 2 . . Power 1 | . . . . . . . . . 1 . . . Propulsion 5 | . . . . 4 . . . . . 1 . . Utility 6 | . . . . 5 . . . . 1 . . . Weapon 2 | . . . . 1 . . . . . 1 . . Parts Attached 147 | 6 7 15 10 13 16 2 2 7 8 35 19 7 Power 10 | 1 . 2 . . 1 . . 1 . 4 . 1 Engine 3 | 1 . 1 . . . . . . . . . 1 Core 3 | . . 1 . . 1 . . . . 1 . . Reactor 4 | . . . . . . . . 1 . 3 . . Propulsion 48 | 2 1 5 6 4 6 . . 3 2 12 6 1 Treads 8 | 2 1 . 2 3 . . . . . . . . Leg 5 | . . . 2 1 1 . . 1 . . . . Wheel 5 | . . 4 1 . . . . . . . . . Hover 23 | . . 1 1 . 5 . . . 1 8 6 1 Flight 7 | . . . . . . . . 2 1 4 . . Utility 47 | 1 4 1 1 4 6 1 2 2 3 10 10 2 Device 33 | . 2 1 1 3 4 . 1 2 2 7 9 1 Storage 4 | 1 2 . . . . . . . . 1 . . Processor 7 | . . . . 1 1 1 . . 1 2 1 . Hackware 1 | . . . . . . . 1 . . . . . Protection 1 | . . . . . 1 . . . . . . . Artifact 1 | . . . . . . . . . . . . 1 Weapon 42 | 2 2 7 3 5 3 1 . 1 3 9 3 3 Energy Gun 10 | 2 2 . 1 4 . . . . . 1 . . Energy Cannon 3 | . . 1 1 . . . . . . 1 . . Ballistic Gun 14 | . . 3 1 1 1 . . . 3 5 . . Ballistic Cannon 2 | . . 2 . . . . . . . . . . Launcher 1 | . . . . . 1 . . . . . . . Special Weapon 2 | . . . . . 1 . . 1 . . . . Impact Weapon 2 | . . 1 . . . 1 . . . . . . Slashing Weapon 6 | . . . . . . . . . . 2 2 2 Piercing Weapon 1 | . . . . . . . . . . . 1 . Special Melee Weapon 1 | . . . . . . . . . . . . 1 Unidentified Prototypes 11 | . . 1 1 1 . . 1 2 . 3 1 1 Corrupted Parts 2 | . . . . . . . . 2 . . . . System Corruption 20 | . . . . . . . . 20 . . . . Parts Lost 52 | . . 9 . 1 8 . 8 6 5 3 . 12 Power 5 | . . 2 . . . . 1 . . . . 2 Propulsion 26 | . . 4 . . 5 . 4 4 3 1 . 5 Utility 12 | . . . . . 1 . 2 2 2 2 . 3 Weapon 9 | . . 3 . 1 2 . 1 . . . . 2 Highest Loss Streak 10 | . . 3 . 1 7 . 8 4 4 1 . 10 To Critical Strikes 2 | . . 1 . . . . . . . . . 1 Average Backups 15 | 2 11 21 22 16 13 8 7 2 2 2 8 7 Power 1 | . 1 2 1 1 2 2 1 . 1 . . . Propulsion 3 | . 2 5 3 3 2 . . . . . 1 1 Utility 5 | . 3 8 8 4 3 3 4 . . . 2 2 Weapon 3 | . 2 5 6 4 2 2 1 . 1 1 . 1 Tool/Special . | . . . . . . . . . . . . . Unused Backups 49 | . 3 2 7 . 13 12 . 3 . 3 3 3 Power 7 | . . 1 1 . 1 3 . . . . . 1 Propulsion 7 | . . . 1 . 2 2 . . . . 1 1 Utility 18 | . 2 . 3 . 5 3 . 3 . 1 1 . Weapon 14 | . 1 1 2 . 4 4 . . . 1 1 . Tool/Special 3 | . . . . . 1 . . . . 1 . 1 Average Slot Usage (%) 80 | . 99 96 76 87 86 87 81 24 17 64 85 63 Engine 6 | . 14 8 12 2 . . . . . . . 3 Reactor 1 | . . . . . 2 5 3 1 . 2 7 3 Treads 9 | . 28 11 6 20 8 . . 2 . . . . Wheel 3 | . . 9 4 5 2 . . . . . . . Hover 8 | . . 2 10 . 14 27 26 . . 16 23 14 Device 15 | . 13 12 12 24 23 25 19 11 10 19 24 20 Storage 8 | . 14 12 12 5 4 5 5 . . . 4 3 Processor 1 | . . . . 4 1 . . . . 2 6 2 Energy Gun 7 | . 28 10 2 5 7 3 4 . . . . . Energy Cannon 2 | . . 2 5 5 4 . . 1 . . . . Ballistic Gun 4 | . . 6 5 3 6 11 4 3 1 9 . . Ballistic Cannon 4 | . . 16 . . . . . . . . . . Impact Weapon 1 | . . . 2 3 . 4 5 . . . . . Slashing Weapon 1 | . . . . . . . . . . 4 17 9 Peak Build Rating 181 | 6 14 32 45 93 110 104 101 73 69 169 181 167 Average Rating 55 | 4 11 24 28 83 96 102 88 44 34 121 165 136 On Entrance 66 | . 6 14 32 44 93 101 101 63 69 26 155 158 Avg Prop Armor Cover (%) 10 | . . 8 10 10 9 . . 37 23 9 . 5 Naked Turns . | . . . . . . . . . . . . . Heaviest Build 120 | 14 92 95 103 117 120 60 55 42 41 77 75 70 Greatest Support 114 | 40 40 40 56 114 114 58 57 70 70 95 85 70 Greatest Overweight (x) 18 | . 2 9 10 3 4 1 1 9 6 2 1 18 Average Overweight (x) 1 | . . 6 3 . . . . . . . . . Largest Inventory Capacity 25 | 8 25 25 25 25 25 10 10 10 5 10 10 10 Average Capacity 18 | 6 17 25 25 25 17 10 10 5 5 5 10 9 Most Carried 25 | 4 19 25 25 23 24 10 10 10 5 6 10 10 Average Carried 16 | 2 11 22 23 19 15 9 9 4 4 4 9 8 Final Capacity 25 | 8 25 25 25 25 10 10 10 5 5 10 10 5 Final Carried 25 | 4 19 25 25 23 10 10 10 4 5 6 10 5 Scrap Suit Usage (%) 1 | . . . . . 5 . . . . . . . Parts Cannibalized 1 | . . . . . 1 . . . . . . . Transmogrified Parts 64 | . . . 25 5 10 5 3 9 4 3 . . Integrity Recovered 903 | . . . 195 60 224 36 . 379 6 3 . . Class Distribution -------------------- 45% | Mutant 29% | Gunner 7% | Scavenger-Gladiator 5% | Scavenger-Gunner 4% | Tank 3% | Alien-Gladiator Dominant Class ---------------- Mutant | -10/Materials Gunner | -10/Subcaves Mutant | -7/Scraptown Mutant | -5/Factory Tank | -5/Upper Caves Scavenger-Tank | -5/Upper Caves Mutant | -5/Zhirov Mutant | -4/Proximity Caves Mutant | -4/Factory Scavenger-Gunner | -3/Research Scavenger-Gladiator | -3/Quarantine Alien-Gladiator | -3/Section 7 Resources | -11 -10 -10 -7 -5 -5 -5 -5 -4 -4 -3 -3 -3 ----------- Run | Yrd Mat Sub Scr Fac Upp Upp Zhi Pro Fac Res Qua Sec Matter Collected 5586 | 260 270 1288 188 269 1042 214 395 250 238 543 528 101 Remotely . | . . . . . . . . . . . . . Salvage Created 4658 | . 517 680 . 321 866 119 367 212 124 587 781 84 Parts 249 | . 36 35 . 16 43 6 1 9 2 30 64 7 Haulers Intercepted 3 | . 2 . . . . . . . . 1 . . Recyclers Shooed . | . . . . . . . . . . . . . Parts Field Recycled . | . . . . . . . . . . . . . Retrieved Matter . | . . . . . . . . . . . . . Parts Self-Destructed 43 | . . 14 . . 16 4 . 9 . . . . Prevented 11 | . . . . . 5 . 1 5 . . . . Parts Restored . | . . . . . . . . . . . . . Kills | -11 -10 -10 -7 -5 -5 -5 -5 -4 -4 -3 -3 -3 ------- Run | Yrd Mat Sub Scr Fac Upp Upp Zhi Pro Fac Res Qua Sec Combat Hostiles Destroyed 75 | . 10 20 . 6 10 6 . 5 5 3 10 . Melee 12 | . . . . 1 . . . . . 1 10 . Guns 28 | . 7 8 . . 3 1 . 2 5 2 . . Cannons 19 | . . 12 . 3 3 . . 1 . . . . AOE 8 | . . . . . 3 5 . . . . . . Classes Destroyed 18 | . 5 2 . 2 3 1 . . . 1 4 . Worker 4 | . 3 . . . . . . . . 1 . . Builder 1 | . . . . . . . . . . . 1 . Hauler 3 | . 2 . . . . . . . . 1 . . Recycler 3 | . 1 . . . . . . . . 2 . . Minesweeper 1 | . . . . . 1 . . . . . . . Operator 2 | . . . . . . . . . . . 1 1 Turret 2 | . . 2 . . . . . . . . . . Watcher 1 | . . . . . . . . . . . 1 . Swarmer 18 | . 3 4 . . . 5 . 1 5 . . . Grunt 18 | . 7 5 . . 4 . . 1 . . 1 . Duelist 1 | . . . . . 1 . . . . . . . Researcher 2 | . . . . . . . . . . . 1 1 Sentry 1 | . . . . . . . . . . 1 . . Hunter 8 | . . . . 4 2 . . 2 . . . . Programmer 17 | . . . . 2 3 . . 1 . 2 9 . Behemoth 1 | . . . . . . 1 . . . . . . Subdweller 11 | . . 11 . . . . . . . . . . Scrapoid 5 | . . . . . 5 . . . . . . . Best Kill Streak 7 | . 5 7 . 3 4 6 . 2 4 3 3 2 Combat Bots Only 7 | . 5 7 . 3 4 6 . 2 4 2 3 . Max Kills in Single Turn 3 | . 1 2 . 1 1 3 . 1 2 1 1 1 Gunslinging 1 | . . . . . . . . . 1 . . . Exploded 3 | . . . . . 1 3 . . . . . . Melee 1 | . . . . 1 . . . . . 1 1 . Uniques/NPCs Destroyed . | . . . . . . . . . . . . . Combat | -11 -10 -10 -7 -5 -5 -5 -5 -4 -4 -3 -3 -3 -------- Run | Yrd Mat Sub Scr Fac Upp Upp Zhi Pro Fac Res Qua Sec Hostile Shots Fired 961 | . 50 135 . 62 88 20 15 187 73 57 60 214 Missed 323 | . 12 41 . 14 29 6 1 74 21 24 29 72 Hits 638 | . 38 94 . 48 59 14 14 113 52 33 31 142 Melee 2 | . . . . . 2 . . . . . . . Projectile 636 | . 38 94 . 48 57 14 14 113 52 33 31 142 AOE 1 | . . . . . . . . . . . . 1 Critical Strikes 24 | . 2 3 . 2 1 . . 3 2 1 2 8 Damage Taken 13205 | . 414 1364 . 776 1444 132 948 2179 907 732 755 3554 Core 4001 | . 66 327 . 44 212 22 278 1196 401 42 110 1303 Absorbed by Shields 271 | . . . . . . 136 63 . . 72 . . Reduced by Siege Mode 79 | . . . . . . . . 79 . . . . Redirected to Shielding 115 | . . . . . 18 . 85 12 . . . . Ignored by Resistances 19 | . . . . . . . . 19 . . . . Regen/Repaired (Parts) 1076 | . . . . . 5 . . . . . 351 720 Core Remaining (%) 54 | 100 . . 12 . . . . 38 67 . . . Volleys Fired 274 | . 48 86 . 11 60 10 8 28 11 12 . . Largest 4 | . 2 3 . 3 4 2 1 3 2 4 . . Hottest 274 | . 130 160 . 185 274 62 30 245 70 225 . . Shots Fired 625 | . 92 248 . 30 128 17 8 46 21 35 . . Gun 446 | . 92 131 . 21 97 14 8 27 21 35 . . Cannon 153 | . . 117 . 9 21 . . 6 . . . . Launcher 11 | . . . . . 8 3 . . . . . . Special 15 | . . . . . 2 . . 13 . . . . Kinetic 365 | . . 184 . 12 66 14 8 27 21 33 . . Thermal 214 | . 92 64 . 9 41 . . 6 . 2 . . Explosive 11 | . . . . . 8 3 . . . . . . Electromagnetic 20 | . . . . 9 11 . . . . . . . Robot Hit Streak 13 | . 11 9 . 6 9 4 12 13 5 9 . . Robot Miss Streak 7 | . 7 4 . 4 6 3 . 2 5 4 . . Penetration Max 1 | . . . . . . . . . . 1 . . Secondary Targets 4 | . 1 . . . . . . . 2 1 . . Max Gunslinging Chain 1 | . 1 . . . . . . . 1 1 . . Shots Hit Robots 381 | . 55 114 . 21 72 8 15 31 8 24 27 6 Core Hits 150 | . 19 34 . 11 31 9 4 7 5 12 14 4 Critical Kills 2 | . . . . . . . . . . 2 . . Critical Parts Destroyed 9 | . . . . . 2 . 1 2 . 4 . . Critical Strikes 27 | . 8 5 . . 3 . 1 2 . 7 1 . Burn 10 | . 8 1 . . 1 . . . . . . . Destroy 10 | . . . . . 2 . . 2 . 6 . . Blast 4 | . . 4 . . . . . . . . . . Smash 1 | . . . . . . . 1 . . . . . Sever 2 | . . . . . . . . . . 1 1 . Melee Attacks 130 | . . 1 . 6 . . 12 1 . 26 63 21 Impact 20 | . . 1 . 6 . . 12 1 . . . . Slashing 109 | . . . . . . . . . . 26 63 20 Piercing 1 | . . . . . . . . . . . . 1 Sneak Attacks 6 | . . . . . . . . . . 3 3 . Combat Hostiles 1 | . . . . . . . . . . . 1 . Follow-up Attacks 16 | . . . . . . . . . . 3 11 2 Damage Inflicted 11203 | . 834 1767 . 702 1859 593 895 743 199 1085 2244 282 Guns 4745 | . 834 1008 . 220 1030 202 177 559 199 516 . . Cannons 1666 | . . 759 . 266 384 . . 184 . . 73 . Explosions 836 | . . . . . 445 391 . . . . . . Melee 3956 | . . . . 216 . . 718 . . 569 2171 282 Ramming . | . . . . . . . . . . . . . Kinetic 3727 | . . 1320 . 48 633 202 177 559 199 516 73 . Thermal 2375 | . 834 447 . 266 644 . . 184 . . . . Explosive 836 | . . . . . 445 391 . . . . . . Electromagnetic 309 | . . . . 172 137 . . . . . . . Impact 934 | . . . . 216 . . 718 . . . . . Slashing 3021 | . . . . . . . . . . 569 2171 281 Piercing 1 | . . . . . . . . . . . . 1 Highest Corruption 18 | . . 18 . . 2 . 1 13 17 8 8 6 Average Corruption 7 | . . 18 . . 2 . 1 2 17 7 3 3 Corruption Purged . | . . . . . . . . . . . . . Corruption Blocked . | . . . . . . . . . . . . . Effects 96 | . . 45 . . 17 . . 4 8 12 9 1 Message Errors 27 | . . 11 . . 3 . . 3 3 5 2 . Matter Fused 21 | . . 11 . . 4 . . . 2 1 3 . Heat Flow Errors 11 | . . 7 . . 2 . . . . . 1 1 Energy Discharges 9 | . . 2 . . 3 . . 1 . 1 2 . Parts Rejected 1 | . . . . . . . . . . 1 . . Parts Fused 2 | . . 2 . . . . . . . . . . Data Loss (minor) 11 | . . 5 . . 3 . . . . 2 1 . Data Loss (major) 4 | . . 1 . . . . . . 1 2 . . Misfires 2 | . . 2 . . . . . . . . . . Misdirections 1 | . . . . . . . . . 1 . . . Weapon Failures 7 | . . 4 . . 2 . . . 1 . . . Overload Shots 2 | . . . . . . . . . . 2 . . Overflow Damage 673 | . . . . 10 17 . 234 . . 131 281 . Projectiles 14 | . . . . . 1 . . . . . 13 . Explosions 16 | . . . . . 16 . . . . . . . Melee 643 | . . . . 10 . . 234 . . 131 268 . Knockbacks 6 | . . 4 . 1 . . 1 . . . . . Impact 2 | . . . . 1 . . 1 . . . . . Kinetic 4 | . . 4 . . . . . . . . . . Secondary . | . . . . . . . . . . . . . Self-Inflicted Damage 274 | . . . . . 274 . . . . . . . Shots 6 | . . . . . 6 . . . . . . . Rammed . | . . . . . . . . . . . . . Targets Rammed . | . . . . . . . . . . . . . Kicked . | . . . . . . . . . . . . . Crushed . | . . . . . . . . . . . . . Highest Temperature 419 | . 237 274 . 287 222 94 12 419 . 297 218 47 Average Temperature 70 | . 60 73 . 66 52 44 5 195 . 113 59 47 Received Heat Transfer 994 | . 171 300 . . 90 12 18 193 51 72 30 57 Effects 1 | . . . . . . . . 1 . . . . Shutdowns 1 | . . . . . . . . 1 . . . . Siege Activations 1 | . . . . . . . . 1 . . . . Total Turns 16 | . . . . . . . . 16 . . . . Longest Duration 16 | . . . . . . . . 16 . . . . Martial Activations . | . . . . . . . . . . . . . Shielding Activations . | . . . . . . . . . . . . . Robots Disrupted 1 | . . . . 1 . . . . . . . . Combat Hostiles 1 | . . . . 1 . . . . . . . . Robots Corrupted 4 | . . . . 2 1 . 1 . . . . . Combat Hostiles 4 | . . . . 2 1 . 1 . . . . . Parts Fried 10 | . . . . 8 2 . . . . . . . Impact Corruptions 15 | . . . . 2 . . 13 . . . . . Robots Melted 3 | . 3 . . . . . . . . . . . Combat Hostiles 3 | . 3 . . . . . . . . . . . Parts Melted 11 | . 8 1 . 1 . . . . . . 1 . Heat Transferred 5266 | . 2775 1073 . 300 933 . . 185 . . . . Parts Sabotaged . | . . . . . . . . . . . . . Parts Stolen . | . . . . . . . . . . . . . Parts Stripped . | . . . . . . . . . . . . . Power Chain Reactions . | . . . . . . . . . . . . . Alert | -11 -10 -10 -7 -5 -5 -5 -5 -4 -4 -3 -3 -3 ------- Run | Yrd Mat Sub Scr Fac Upp Upp Zhi Pro Fac Res Qua Sec Maximum Alert Level 1 | . . . . . . . . . . 1 1 . Low Security (%) 90 | 100 100 . . 100 . . . . 100 74 68 100 Level 1 9 | . . . . . . . . . . 25 31 . Level 2 . | . . . . . . . . . . . . . Level 3 . | . . . . . . . . . . . . . Level 4 . | . . . . . . . . . . . . . Level 5 . | . . . . . . . . . . . . . High Security . | . . . . . . . . . . . . . Max Security . | . . . . . . . . . . . . . Peak Influence 244 | . 86 . . 70 . . . . 117 235 244 165 Initial 120 | . . . . . . . . . 6 30 114 120 Average 74 | . 19 . . 16 . . . . 74 103 181 87 Influence Increases 2681 | . 277 220 . 179 225 152 15 185 239 430 522 237 Destroy 0b10 Robot/C 1420 | . 200 220 . 120 200 120 . 100 120 60 220 60 Destroy 0b10 Robot/NC 95 | . 30 . . . 5 . 15 . . 20 15 10 Destroy Leader 210 | . 44 . . 40 20 20 . 10 20 22 32 2 Allied During Kill 42 | . . . . . . 12 . . 12 . 17 1 Successful Hack 24 | . . . . . . . . . . . 16 8 Disable Machine 165 | . . . . 15 . . . . 15 . 90 45 Destroy Structure 73 | . 3 . . 4 . . . . 12 36 12 6 Partial Spotted 90 | . . . . . . . . . 45 . 15 30 Lose Combat Pursuer 390 | . . . . . . . . 75 15 120 105 75 Miscellaneous 172 | . . . . . . . . . . 172 . . Influence Decreases 2681 | . 277 170 50 157 247 60 107 175 190 285 512 451 Entered New Map 368 | . . . 50 . 9 . 92 . 4 29 90 94 Time Decay 1826 | . 277 100 . 147 158 40 15 155 136 226 342 230 Lost Part 367 | . . 70 . 10 80 . . 20 50 30 . 107 Lost Ally 120 | . . . . . . 20 . . . . 80 20 Squads Dispatched 32 | . 1 . . 5 . . . . 3 7 7 9 Investigation 6 | . . . . 3 . . . . 2 1 . . Extermination 11 | . . . . 1 . . . . 1 3 4 2 Reinforcement 12 | . 1 . . 1 . . . . . 3 1 6 Assault . | . . . . . . . . . . . . . Garrison 2 | . . . . . . . . . . . 2 . Intercept 1 | . . . . . . . . . . . . 1 Searches Triggered . | . . . . . . . . . . . . . Construction Impeded . | . . . . . . . . . . . . . Haulers Reinforced . | . . . . . . . . . . . . . Active Scanning Responses . | . . . . . . . . . . . . . Cargo Convoy Interrupts . | . . . . . . . . . . . . . Stealth | -11 -10 -10 -7 -5 -5 -5 -5 -4 -4 -3 -3 -3 --------- Run | Yrd Mat Sub Scr Fac Upp Upp Zhi Pro Fac Res Qua Sec Distress Signals 8 | . 1 . . . . . . . . 3 . 4 Communications Jammed 11 | . . . . . . . . . . 9 2 . Distress Signals 11 | . . . . . . . . . . 9 2 . Times Spotted 231 | . 27 22 . 7 10 4 3 36 17 29 24 52 Peak Tracking Total 15 | . 7 6 . 3 4 5 3 7 10 11 4 15 Tactical Retreats 16 | . . . . . . . . 4 1 2 5 4 Traps | -11 -10 -10 -7 -5 -5 -5 -5 -4 -4 -3 -3 -3 ------- Run | Yrd Mat Sub Scr Fac Upp Upp Zhi Pro Fac Res Qua Sec Traps Triggered 1 | . . 1 . . . . . . . . . . Indirectly . | . . . . . . . . . . . . . Trap Hack Attempts . | . . . . . . . . . . . . . Triggered . | . . . . . . . . . . . . . Disarmed . | . . . . . . . . . . . . . Reprogrammed . | . . . . . . . . . . . . . Reused . | . . . . . . . . . . . . . Traps Extracted . | . . . . . . . . . . . . . Installed . | . . . . . . . . . . . . . Triggered . | . . . . . . . . . . . . . Machines | -11 -10 -10 -7 -5 -5 -5 -5 -4 -4 -3 -3 -3 ---------- Run | Yrd Mat Sub Scr Fac Upp Upp Zhi Pro Fac Res Qua Sec Machines Disabled 16 | . . 3 . 1 1 . 1 . 1 . 6 3 Max in Single Turn 1 | . . 1 . 1 1 . 1 . 1 . 1 1 Machines Repaired . | . . . . . . . . . . . . . Machines Dismantled . | . . . . . . . . . . . . . Machines Sabotaged . | . . . . . . . . . . . . . Overloaded Fab Kills . | . . . . . . . . . . . . . Hacking | -11 -10 -10 -7 -5 -5 -5 -5 -4 -4 -3 -3 -3 --------- Run | Yrd Mat Sub Scr Fac Upp Upp Zhi Pro Fac Res Qua Sec Machines Accessed 17 | . . 2 1 3 . . 4 . 2 1 1 3 Terminals 3 | . . . . . . . . . . 1 . 2 Fabricators . | . . . . . . . . . . . . . Repair Stations 2 | . . . . . . . . . . . 1 1 Recycling Units 5 | . . . . 3 . . . . 2 . . . Scanalyzers . | . . . . . . . . . . . . . Garrison Access . | . . . . . . . . . . . . . Total Hacks 38 | . . 5 3 4 . . 16 . 2 2 1 5 Successful 33 | . . 5 3 3 . . 16 . 2 1 1 2 Failed 5 | . . . . 1 . . . . . 1 . 3 Catastrophic 2 | . . . . 1 . . . . . . . 1 Database Lockouts . | . . . . . . . . . . . . . Manual 10 | . 1 . . 4 1 . . . 2 2 . . Terminals 6 | . . . . . . . . . . 2 . 4 Fabricators . | . . . . . . . . . . . . . Repair Stations 2 | . . . . . . . . . . . 1 1 Recycling Units 6 | . . . . 4 . . . . 2 . . . Scanalyzers . | . . . . . . . . . . . . . Garrison Access . | . . . . . . . . . . . . . Terminal Hacks 27 | . . 5 3 . . . 16 . . 1 . 2 Record 11 | . . 4 3 . . . 4 . . . . . Part Schematic 4 | . . . . . . . 4 . . . . . Robot Analysis 4 | . . . . . . . 4 . . . . . Prototype ID Bank 4 | . . . . . . . 4 . . . . . Open Door 2 | . . . . . . . . . . . . 2 Branch Access Points 1 | . . . . . . . . . . 1 . . Proto ID Catalog 1 | . . 1 . . . . . . . . . . Fabricator Hacks . | . . . . . . . . . . . . . Repair Station Hacks 1 | . . . . . . . . . . . 1 . Refit 1 | . . . . . . . . . . . 1 . Recycling Unit Hacks . | . . . . . . . . . . . . . Scanalyzer . | . . . . . . . . . . . . . Garrison Access Hacks . | . . . . . . . . . . . . . Unauthorized Hacks 5 | . . . . 3 . . . . 2 . . . Terminals . | . . . . . . . . . . . . . Fabricators . | . . . . . . . . . . . . . Repair Stations . | . . . . . . . . . . . . . Recycling Units 5 | . . . . 3 . . . . 2 . . . Fedlink 5 | . . . . 3 . . . . 2 . . . Scanalyzers . | . . . . . . . . . . . . . Garrison Access . | . . . . . . . . . . . . . Data Cores Recovered 1 | . . . . . . . . . . . 1 . Used . | . . . . . . . . . . . . . Hacking Detections 4 | . . . . 1 . . . . . . . 3 Full Trace Events . | . . . . . . . . . . . . . Feedback Events . | . . . . . . . . . . . . . Feedback Blocked . | . . . . . . . . . . . . . Robot Schematics Acquired 2 | . . . . . . . . . . . 1 1 Robots Built . | . . . . . . . . . . . . . Authchips . | . . . . . . . . . . . . . Time . | . . . . . . . . . . . . . Total Robot Build Rating . | . . . . . . . . . . . . . Part Schematics Acquired 15 | . . . . . . . 4 . . . 5 6 Parts Built . | . . . . . . . . . . . . . Authchips . | . . . . . . . . . . . . . Time . | . . . . . . . . . . . . . Total Part Build Rating . | . . . . . . . . . . . . . Part Studies Acquired . | . . . . . . . . . . . . . Parts Repaired . | . . . . . . . . . . . . . Time . | . . . . . . . . . . . . . Parts Recycled . | . . . . . . . . . . . . . Recycled Matter . | . . . . . . . . . . . . . Retrieved Matter . | . . . . . . . . . . . . . Retrieved Components . | . . . . . . . . . . . . . Parts Scanalyzed . | . . . . . . . . . . . . . Part Schematics Acquired . | . . . . . . . . . . . . . Parts Damaged . | . . . . . . . . . . . . . Bothacking | -11 -10 -10 -7 -5 -5 -5 -5 -4 -4 -3 -3 -3 ------------ Run | Yrd Mat Sub Scr Fac Upp Upp Zhi Pro Fac Res Qua Sec Used RIF Installer . | . . . . . . . . . . . . . Robots Hacked . | . . . . . . . . . . . . . Non-combat . | . . . . . . . . . . . . . Combat . | . . . . . . . . . . . . . Robot Hacks Applied . | . . . . . . . . . . . . . Relay Couplers Released . | . . . . . . . . . . . . . Fabnet Peak Effective % . | . . . . . . . . . . . . . Robots Rewired . | . . . . . . . . . . . . . Allies Hacked . | . . . . . . . . . . . . . Hacks Repelled . | . . . . . . . . . . . . . Allies | -11 -10 -10 -7 -5 -5 -5 -5 -4 -4 -3 -3 -3 -------- Run | Yrd Mat Sub Scr Fac Upp Upp Zhi Pro Fac Res Qua Sec Total Allies 19 | . . . . . 6 . . . 3 . 8 2 Largest Group 5 | . . . . . 5 1 . . 3 . 5 1 Highest-Rated Group 307 | . . . . . 241 102 . . 126 . 307 160 Highest-Rated Ally 160 | . . . . . 102 102 . . 42 . 64 160 Initial UFD Resources 75 | . . . . 37 53 53 53 57 57 75 75 75 Total Orders 2 | . . . . . . . . . 1 . 1 . STAY 2 | . . . . . . . . . 1 . 1 . Ally Attacks 37 | . . . . . . 4 . . 2 . 21 10 Total Damage 1029 | . . . . . . 226 . . 142 . 340 321 Kills 4 | . . . . . . . . . 1 . . 3 Allies Corrupted 1 | . . . . . . . . . . . 1 . Allies Melted 1 | . . . . . . 1 . . . . . . X0-1V1 Amusement Gains 344 | . 14 . 33 17 16 5 88 33 16 22 20 80 Good Acts 88 | . . 13 . . 9 1 . 12 4 14 15 20 Bad Acts 43 | . . 13 . 2 4 1 . 12 3 5 3 . Intel | -11 -10 -10 -7 -5 -5 -5 -5 -4 -4 -3 -3 -3 ------- Run | Yrd Mat Sub Scr Fac Upp Upp Zhi Pro Fac Res Qua Sec Active Infowar (turns) 2034 | . . . . 469 36 10 . 66 5 236 772 440 Optics 7 | . . . . . . 7 . . . . . . Sensors 1380 | . . . . 206 22 . . . . . 712 440 Terrain 5 | . . . . . . . . . 5 . . . Seismic 271 | . . . . 263 8 . . . . . . . Triangulation 66 | . . . . . . . . 66 . . . . Cloaking 4 | . . . . . . 3 . . . . 1 . Jamming 644 | . . . . . . . . . . 236 249 159 ECM 6 | . . . . . 6 . . . . . . . Robot Analysis Total 4 | . . . . . . . 4 . . . . . Derelict Logs Recovered 4 | . . 1 2 . . . . 1 . . . . Drone Launches . | . . . . . . . . . . . . . Drone Recoveries . | . . . . . . . . . . . . . Exploration | -11 -10 -10 -7 -5 -5 -5 -5 -4 -4 -3 -3 -3 ------------- Run | Yrd Mat Sub Scr Fac Upp Upp Zhi Pro Fac Res Qua Sec Turns Passed 11602 | 87 1260 2885 2580 527 1042 248 194 679 297 523 775 505 Spaces Moved 8595 | 51 462 1221 1026 252 737 288 230 763 475 858 1308 924 Core 897 | 6 . . . . . . . 464 313 62 . 52 Treads 1279 | 45 462 154 238 196 109 . . 68 7 . . . Legs 26 | . . . 13 . 13 . . . . . . . Wheels 1724 | . . 1067 563 56 38 . . . . . . . Hover 3622 | . . . 212 . 577 288 230 14 . 453 1308 540 Flight 715 | . . . . . . . . 217 155 343 . . Fastest Speed 32 | 50 160 150 124 145 42 44 36 35 35 32 36 48 Average Speed 114 | 147 228 209 233 175 89 75 54 66 49 39 41 57 Slowest Speed 950 | 160 320 480 670 400 400 102 111 500 350 180 103 950 Overloaded Moves 38 | . . . . . . . . 3 . 35 . . Propulsion Burnouts . | . . . . . . . . . . . . . Robots Hopped 6 | . . . . . . . . . 3 3 . . Potential Cave-ins 2 | . . . . . . . . 2 . . . . Cave-ins Triggered 1 | . . . . . . . . 1 . . . . Teleports 5 | . . . . . . . . 1 . . . 4 Microwarps 30 | . . . . . . . . . . . . 30 Exploration Rate (%) 48 | 4 57 68 71 6 48 49 67 77 14 26 87 55 Regions Visited 12 Branch Regions 8 Pre-discovered Areas 4 | . . 1 . 1 . . 2 . . . . . Known Exits Taken 4 | . . . . 1 . . . 1 . 1 1 . Unknown Exits Taken 8 | 1 1 1 1 . 1 1 1 . 1 . . . Scrap Searched 16 | . . 10 3 . 1 2 . . . . . . Spaces Dug 26 | . . . . 1 . . 1 1 . 13 6 4 Terrain Destroyed 114 | . . . . 1 54 18 1 4 6 20 6 4 Melee 25 | . . . . 1 . . 1 1 . 12 6 4 Projectile 36 | . . . . . 16 3 . 3 6 8 . . AOE 53 | . . . . . 38 15 . . . . . . Terrain Rammed . | . . . . . . . . . . . . . Walls Destroyed . | . . . . . . . . . . . . . Machines Disabled . | . . . . . . . . . . . . . Actions | -11 -10 -10 -7 -5 -5 -5 -5 -4 -4 -3 -3 -3 --------- Run | Yrd Mat Sub Scr Fac Upp Upp Zhi Pro Fac Res Qua Sec Total 9704 | 60 579 1368 1222 302 1014 307 270 878 512 982 1471 739 Wait 560 | . 38 20 155 1 153 . 8 60 8 19 59 39 Move 8269 | 50 461 1220 1025 251 736 287 229 761 469 851 1307 622 Hop 5 | . . . . . . . . . 2 3 . . Pick Up 123 | 4 17 19 11 11 20 2 1 2 2 13 14 7 Fast Attach 94 | 6 1 . 7 3 4 1 3 5 5 30 17 12 Attach 80 | . . 14 4 13 13 1 1 8 4 8 3 11 Detach 18 | . . . . . . . . 6 4 1 2 5 Swap 28 | . 6 2 . . 4 1 . . . 4 7 4 Drop 159 | . 8 6 20 6 24 5 2 6 7 22 31 22 Fire 274 | . 48 86 . 11 60 10 8 28 11 12 . . Melee 83 | . . 1 . 6 . . 12 1 . 19 31 13 Ram . | . . . . . . . . . . . . . Kick . | . . . . . . . . . . . . . Crush . | . . . . . . . . . . . . . Escape Stasis 11 | . . . . . . . 6 1 . . . 4 Rewire . | . . . . . . . . . . . . . Trap . | . . . . . . . . . . . . . Miscellaneous . | . . . . . . . . . . . . . Route ------- -11/Scrapyard -10/Materials (discovered 3 exits: [*Min x2] / *Sub) -10/Subcaves (discovered 4 exits: *Mat x2 / *Rec / *Scr) -7/Scraptown -5/Factory (discovered 7 exits: Fac x3 / *Upp x2 / Ext x2) -5/Upper Caves -5/Upper Caves -5/Zhirov -4/Proximity Caves -4/Factory -3/Research (discovered 4 exits: Res / Arm / *Qua x2) -3/Quarantine (discovered 3 exits: *Res / *Sec / [*Frg]) -3/Section 7 (discovered 1 exit: Res) History --------- Turn | Location | Event 11 | -11/Scrapyard | Discovered new exit (range 15) 88 | -11/Scrapyard | Entered Materials 262 | -10/Materials | Discovered new exit (range 6) 304 | -10/Materials | Build established: Mutant 544 | -10/Materials | Discovered new exit (range 12) 1299 | -10/Materials | Discovered new exit (range 10) 1331 | -10/Materials | Prayed at D.C.S.S. Altar Unit 1348 | -10/Materials | Entered Subcaves 1349 | -10/Subcaves | Approached by a straggling Scientist 1422 | -10/Subcaves | Weapon slot count permanently improved by X0-1V1 (+1) 1724 | -10/Subcaves | Build established: Gunner 1780 | -10/Subcaves | Core integrity permanently improved by X0-1V1 (+300) 2107 | -10/Subcaves | Matter capacity permanently improved by X0-1V1 (+400) 2671 | -10/Subcaves | Discovered new exit (range 14) 2999 | -10/Subcaves | Visited Clippyterm 3005 | -10/Subcaves | Identified exit to Recycling 3005 | -10/Subcaves | Identified exit to Materials 3005 | -10/Subcaves | Learned 40 Factory zone layouts 3097 | -10/Subcaves | X0-1V1 activates XOMVISION 3191 | -10/Subcaves | Shifting Twisted Machinery released Barrage Gun 3230 | -10/Subcaves | Shifting Twisted Machinery released Ripper 3234 | -10/Subcaves | X0-1V1 sent you into danger 3316 | -10/Subcaves | System corruption reached 10% 3319 | -10/Subcaves | Shifting Twisted Machinery released Hvy. Riot Gun 3328 | -10/Subcaves | Shifting Twisted Machinery released Sub. Power Source 3597 | -10/Subcaves | Core integrity fell below 50% 3623 | -10/Subcaves | X0-1V1 sent hostile G-34 Mercenary (x5) 3673 | -10/Subcaves | Lost 3 parts (2n1w) 3674 | -10/Subcaves | Destroyed 7 combat bots 3719 | -10/Subcaves | X0-1V1 activates XOMVISION 3899 | -10/Subcaves | Lost 3 parts (1p1n1w) 3905 | -10/Subcaves | Core integrity fell below 20% 3948 | -10/Subcaves | A swath of the cavern ceiling suddenly collapsed 3979 | -10/Subcaves | Visited 4L-MR0's lab 3993 | -10/Subcaves | Found Prototype Device 4000 | -10/Subcaves | Found Meta Core 4233 | -10/Subcaves | Entered Scraptown 4233 | -7/Scraptown | System corruption cleaned by C-Scrubber 4303 | -7/Scraptown | Build established: Mutant 4404 | -7/Scraptown | Visited UFD Registry 4404 | -7/Scraptown | Registered with UFD as "Pyrospreader" 4469 | -7/Scraptown | Visited Supply Room 4490 | -7/Scraptown | Visited Scrapoid Pod Storage 4530 | -7/Scraptown | Visited Abandonware Association 4548 | -7/Scraptown | Learned abandonware demo "SHUTEYE.EXE" 4549 | -7/Scraptown | Identified Sfc. Transmogrifier 4721 | -7/Scraptown | Visited Junk Repository 4813 | -7/Scraptown | Visited Curators Association 4991 | -7/Scraptown | Visited Comm Corps 5176 | -7/Scraptown | Visited Cyclists 5234 | -7/Scraptown | Visited Symbiants 5579 | -7/Scraptown | Scanned Subdweller tech in exchange for log data 5583 | -7/Scraptown | Learned location of 1 exit from Factory 5584 | -7/Scraptown | Learned Research stockpile data 6034 | -7/Scraptown | Build established: Gunner 6445 | -7/Scraptown | Found Scrapoid Pod 6554 | -7/Scraptown | Visited Botcube Research 6565 | -7/Scraptown | Found Lrg. Botcube 6643 | -7/Scraptown | Build established: Mutant 6679 | -7/Scraptown | Met Optimus 6679 | -7/Scraptown | Accepted into 0bPrime 6809 | -7/Scraptown | Discovered new exit (range 3) 6813 | -7/Scraptown | Entered Factory 6813 | -5/Factory | Evolved 10 slots: Propulsion x4, Utility x5, Weapon x1 6814 | -5/Factory | Identified exit to Factory 6815 | -5/Factory | Identified exit to Upper Caves 6815 | -5/Factory | Identified exit to Extension 6894 | -5/Factory | Loaded intel: 8 recycling unit locations 6993 | -5/Factory | Learned location of Protoforge (-3) 7340 | -5/Factory | Entered Upper Caves 7556 | -5/Upper Caves | Encountered a Warlord checkpoint 7619 | -5/Upper Caves | Attached Meta Core, gained temporary slots: Propulsion, Utility, Weapon 7678 | -5/Upper Caves | Build established: Tank 7763 | -5/Upper Caves | Ambushed by research squad 7844 | -5/Upper Caves | Lost 7 parts (5n2w) 7945 | -5/Upper Caves | X0-1V1 activates XOMVISION 7967 | -5/Upper Caves | Discovered new exit (range 15) 8041 | -5/Upper Caves | Scrapoid Pod released 05U07-D (x5) 8061 | -5/Upper Caves | Attached CPS modules to 05U06-D 8094 | -5/Upper Caves | Found Scrap Suit 8166 | -5/Upper Caves | Murdered 5 allies 8229 | -5/Upper Caves | Found Scrap Suit 8244 | -5/Upper Caves | Found Scrap Suit 8270 | -5/Upper Caves | Lrg. Botcube activated 8289 | -5/Upper Caves | Build established: Scavenger-Gunner 8294 | -5/Upper Caves | Lrg. Botcube completed mutation into wheeled form, armed with 3 guns. 8334 | -5/Upper Caves | Acquired the password to a Derelict Tinkerer's latest research 8342 | -5/Upper Caves | Found Prototype Special Weapon 8382 | -5/Upper Caves | Entered another Upper Caves area 8382 | -5/Upper Caves | Accompanied by 1 ally 8383 | -5/Upper Caves | Encountered a Warlord checkpoint 8539 | -5/Upper Caves | Spotted B-75 Beast 8570 | -5/Upper Caves | Destroyed B-75 Beast 8574 | -5/Upper Caves | Found Lrg. Botcube 8591 | -5/Upper Caves | X0-1V1 mutated your Weapon slot to Propulsion slot 8598 | -5/Upper Caves | Core integrity restored by X0-1V1 (+278) 8624 | -5/Upper Caves | Discovered new exit (range 12) 8630 | -5/Upper Caves | Entered Zhirov 8630 | -5/Zhirov | Discovered new exit (range 3) 8638 | -5/Zhirov | Met Zhirov 8651 | -5/Zhirov | Found Alien Artifact 8651 | -5/Zhirov | Identified Integrated Reactor 8651 | -5/Zhirov | Installed Integrated Reactor, increased core energy generation (+10) 8658 | -5/Zhirov | Found Alien Artifact 8722 | -5/Zhirov | Learned location of Testing (-2) 8722 | -5/Zhirov | Learned location of Quarantine (-3) 8724 | -5/Zhirov | Zhirov requested help retrieving the SGEMP Prototype 8730 | -5/Zhirov | Cloak Generator disabled 8730 | -5/Zhirov | Attacked by Zhirov 8740 | -5/Zhirov | Enhanced Grunts warped into view 8768 | -5/Zhirov | Zhirov warped through subspace 8771 | -5/Zhirov | Zhirov detonated his lab 8802 | -5/Zhirov | Lost 8 parts (1p4n2u1w) 8802 | -5/Zhirov | Lost 6 allies 8824 | -5/Zhirov | Entered Proximity Caves 8824 | -4/Proximity Caves | Identified Transdimensional Reconstructor 8824 | -4/Proximity Caves | Warped through subspace 8861 | -4/Proximity Caves | Build established: Mutant 8862 | -4/Proximity Caves | System corruption reached 10% 8867 | -4/Proximity Caves | Core integrity fell below 50% 8878 | -4/Proximity Caves | X0-1V1 sent you into danger 8878 | -4/Proximity Caves | X0-1V1 upgraded hostiles (x2) 8888 | -4/Proximity Caves | X0-1V1 revealed exit location to -4/Factory 8899 | -4/Proximity Caves | Learned Research garrison access intel 8901 | -4/Proximity Caves | Identified Molecular Deconstructor 8917 | -4/Proximity Caves | Lost 4 parts (3n1u) 8918 | -4/Proximity Caves | Spotted B-86 Titan 8939 | -4/Proximity Caves | Core integrity fell below 20% 8962 | -4/Proximity Caves | X0-1V1 sent hostile P-70 Sage (x2) 8962 | -4/Proximity Caves | X0-1V1 whisked you away to safety 9048 | -4/Proximity Caves | X0-1V1 sent you into danger 9053 | -4/Proximity Caves | X0-1V1 sent hostile G-50 Soldier (x3) 9058 | -4/Proximity Caves | X0-1V1 rescued you from certain death 9097 | -4/Proximity Caves | X0-1V1 sent you into danger 9098 | -4/Proximity Caves | X0-1V1 whisked you away to safety 9174 | -4/Proximity Caves | Crushed by falling debris 9499 | -4/Proximity Caves | Core integrity restored by X0-1V1 (+275) 9503 | -4/Proximity Caves | Entered Factory 9503 | -4/Factory | Evolved 2 slots: Power x1, Utility x1 9575 | -4/Factory | Loaded intel: 8 recycling unit locations 9640 | -4/Factory | X0-1V1 sent you to a vault 9643 | -4/Factory | Discovered new exit (range 15) 9650 | -4/Factory | X0-1V1 enhanced Transport squad support 9658 | -4/Factory | Lost 4 parts (2n2u) 9687 | -4/Factory | System corruption reached 10% 9800 | -4/Factory | Entered Research 9800 | -3/Research | Evolved 2 slots: Propulsion x1, Weapon x1 9802 | -3/Research | Loaded intel: 4 garrison access locations 9815 | -3/Research | X0-1V1 activates XOMVISION 9843 | -3/Research | X0-1V1 announced a LAN party 9865 | -3/Research | Identified exit to Armory 9865 | -3/Research | Identified exit to Quarantine 9910 | -3/Research | X0-1V1 whisked you away to safety 9940 | -3/Research | X0-1V1 activates XOMVISION 10070 | -3/Research | X0-1V1 mutated your Utility slot to Weapon slot 10093 | -3/Research | Identified exit to Research 10093 | -3/Research | X0-1V1 revealed exit location to -2/Research 10139 | -3/Research | X0-1V1 mutated your Propulsion slot to Utility slot 10189 | -3/Research | X0-1V1 added 0b10 threat records associated with you (considerable) 10323 | -3/Research | Entered Quarantine 10332 | -3/Quarantine | Found Transdimensional Reconstructor 10353 | -3/Quarantine | Found Alien Artifact 10354 | -3/Quarantine | Identified Core Reset Matrix 10354 | -3/Quarantine | Used Core Reset Matrix 10358 | -3/Quarantine | Detected hypermatrix surge 10358 | -3/Quarantine | Sensed 10 artifacts in vicinity 10384 | -3/Quarantine | X0-1V1 sent you into danger 10398 | -3/Quarantine | Found Sigix Broadsword 10413 | -3/Quarantine | Found Subatomic Replicator 10431 | -3/Quarantine | Cryocooling Duct disabled 10446 | -3/Quarantine | Ambient heat levels rising (+20) 10446 | -3/Quarantine | Non-combat units ordered to evacuate 10447 | -3/Quarantine | X0-1V1 foreshadows a heat wave 10492 | -3/Quarantine | Build established: Scavenger-Gladiator 10502 | -3/Quarantine | Identified exit to Section 7 10502 | -3/Quarantine | X0-1V1 revealed exit location to -3/Section 7 10525 | -3/Quarantine | Ambient heat levels rising (+10) 10606 | -3/Quarantine | Ambient heat levels rising (+10) 10623 | -3/Quarantine | Found Dimensional Node Initializer 10627 | -3/Quarantine | Found Transdimensional Reconstructor 10657 | -3/Quarantine | Ambient heat levels falling (-10) 10662 | -3/Quarantine | Used Subatomic Replicator to replicate X0-1V1's Piety Tracker 10698 | -3/Quarantine | Ambient heat levels falling (-10) 10743 | -3/Quarantine | Lrg. Botcube activated 10751 | -3/Quarantine | Lrg. Botcube completed mutation into hovering form (unarmed). 10757 | -3/Quarantine | X0-1V1 activates XOMVISION 10780 | -3/Quarantine | Spotted Fortress 10818 | -3/Quarantine | X0-1V1 mutated your Propulsion slot to Power slot 10824 | -3/Quarantine | X0-1V1 sent you to a vault 10854 | -3/Quarantine | X0-1V1 revealed exit location to -2/Research 10949 | -3/Quarantine | Garrison activated, responded to threat 10956 | -3/Quarantine | Lost 3 allies 11056 | -3/Quarantine | X0-1V1 sent allied Y-72 Warden (x4) 11092 | -3/Quarantine | Discovered new exit (range 6) 11098 | -3/Quarantine | Entered Section 7 11099 | -3/Section 7 | Detected hypermatrix surge 11099 | -3/Section 7 | Sensed 23 artifacts in vicinity 11120 | -3/Section 7 | Found Microwarp Drive 11131 | -3/Section 7 | Scanned by Researcher 11156 | -3/Section 7 | Weapon slot count temporarily expanded by X0-1V1 (+4) 11165 | -3/Section 7 | X0-1V1 activates XOMVISION 11167 | -3/Section 7 | Spotted S7 Guard 11174 | -3/Section 7 | Found Integrated Thermoelectric Network 11174 | -3/Section 7 | Installed Integrated Thermoelectric Network, gained heat-energy exchange potential 11175 | -3/Section 7 | Warped through subspace 11190 | -3/Section 7 | X0-1V1 revealed exit location to -2/Research 11202 | -3/Section 7 | X0-1V1 sent you to a vault 11203 | -3/Section 7 | Found Hvy. Scimitar of Distortion 11205 | -3/Section 7 | Found Prototype Device 11205 | -3/Section 7 | Identified Femtoactuators 11267 | -3/Section 7 | Warped through subspace 11267 | -3/Section 7 | Spotted B-99 Colossus 11293 | -3/Section 7 | Found Hpw. Transdimensional Reconstructor 11296 | -3/Section 7 | Found Transdimensional Reconstructor 11304 | -3/Section 7 | Spotted Executioner 11304 | -3/Section 7 | Spotted Executioner 11305 | -3/Section 7 | X0-1V1 activates XOMVISION 11313 | -3/Section 7 | Intercept squad dispatched 11318 | -3/Section 7 | Core integrity restored by X0-1V1 (+238) 11327 | -3/Section 7 | Spotted Tracker 11330 | -3/Section 7 | Warped through subspace 11357 | -3/Section 7 | Found Chaos Jack 11405 | -3/Section 7 | Found LRC Energy Well 11405 | -3/Section 7 | Installed LRC Energy Well, increased energy storage capacity (+250) 11409 | -3/Section 7 | Found LRC Armor 11409 | -3/Section 7 | Installed LRC Armor, increased core integrity (+250) 11442 | -3/Section 7 | Found Integrity Redistributor 11442 | -3/Section 7 | Used Integrity Redistributor, redistributed integrity from core (-65) 11466 | -3/Section 7 | Build established: Alien-Gladiator 11467 | -3/Section 7 | Warped through subspace 11467 | -3/Section 7 | Spotted Alpha 7 11467 | -3/Section 7 | Spotted Alpha 7 11473 | -3/Section 7 | X0-1V1 sent allied Lightning (x1) 11512 | -3/Section 7 | Spotted B-86 Titan 11524 | -3/Section 7 | X0-1V1 activates XOMVISION 11549 | -3/Section 7 | Found Hvy. Scimitar of Distortion 11558 | -3/Section 7 | Core integrity fell below 50% 11580 | -3/Section 7 | Spotted Combat Programmer 11583 | -3/Section 7 | Core integrity fell below 20% 11586 | -3/Section 7 | X0-1V1 turns hostiles against one another 11599 | -3/Section 7 | Weapon slot count temporarily expanded by X0-1V1 (+1) 11603 | -3/Section 7 | Destroyed by H-77 Assassin with Coil Gun Last Messages --------------- area. 11590_ Combat Programmer held in stasis. 11591_ X0-1V1 lends a hand with your twisted circuits (-2 system corruption). 11591_ Combat Programmer knocked back. 11591_ Slug penetrates Combat Programmer. 11591_ Combat Programmer fails to hack Tracker. 11592_ Slug penetrates Combat Programmer. 11599_ X0-1V1: "Weapons, camera, action!" (+1 weapon slot) 11600_ Extracted schematic archive: Helical Railgun. 11600_ K-01 Serf destroyed. 11600_ Acquired 43 matter. 11600_ Drone sends a signal. 11600_ Penetrated by Slug. 11601_ Extracted schematic archive: K-01 Serf. 11601_ Penetrated by Slug. 11601_ Slug penetrates Terminal. 11603_ Slug penetrates Wall. 11603_ Penetrated by Slug. 11603_ X0-1V1 howls with laughter! Map ----- +----------------------------------------------------+ | ??# ### #?????###### #????" | | ??# / / #??????????# #????" | | ??# ### #??????????# #????" | | ??# #?# #??????????# #???#" | | ??# """ #?# #??????????#######???# ! | | ??# "!" #?# [ #????????????????????#" | | ??# """"" #?########????????????????????#"" | | ??# """"" #?????????????????????????????#""" | | ??# #?????????????????????????????#""" | | ??###+######???????????????????????????###""" | | ????# #???????????????????????########## # | | ????# #???###?????????????????# " | | ????# #???# #?????????????????# + | | ???##+#####"#####?????????????# + | | ???# #?????Y???????# + | | ???# """ """ [#?????????????# ##### # | | ???# !""" """ #?????????????# %#???###""" | | ???# """ """ ######????????# #?????#""" | | ???# """ """ # # ""?????# #?????#""" | | ???# """ """ + # """????# #?????#"" | | ???# """ """ # # "S ??# #?????#" | | ???# """ """ # + """ ?#c #?????# "" | | ???# ? # n # " # ##????# "" | | ???# # #??? # ##????######### | | ???# ! # ########## ##????????????? | | ???# # @ 7 7 $ ###???????????? | | ???############## s $$ ##???????????? | | ????????????????# R ##???????????? | | ????????????????# "##???????????? | | ????????????????##+#+#### T##???????????? | | ????????????????????????# "#????????????? | | ????????????????????????# = "#????????????? | | ????????????????????????# $o "#????????????? | | ???????????#? """"?????# % ##????????????? | | ??????????## """""????# $ #?????????????? | | ??????????#Y ??# h""" #?????????????? | | ???????????# "" #h """ #????????????## | | ???????????# "" + """ #????????????#" | | #####??????# "T # """ #????????????#" | | !"""#??????? "" ! # """ #????????????#" | | " ""#??????? "" A ????# """ #????????????#" | | "!""#??????# w??????# g""" ####?????????#" | | """"#??????#####/#????### "" #?????????#" | | """#??????????# #????#""g """#?????????#" | | ""#??????????# #????#"" T"#?????????#" | | "#??????????# #????#G """#?????????#" | | #####????????### ###??#"" "" #?????????#" | | ?????######### #??#"" ####??????????# | | ?????# = # ###### !! #?????????????? | | ????##|= =* =+ !! #?????????????? | +----------------------------------------------------+ Best States ------------- Heat Dissipation 84 Energy Generation 47 Energy Capacity 1680 Matter Stores 931 Matter Capacity 1400 Sight Range 22 Robot Scan Range 16 Terrain Scan Density 10 Jamming Range 14 Armor Coverage 225 Resistance: KI 25 Resistance: EX 25 Propulsion Shielding 15 Utility Shielding 33 Melee Speed Boost 20 Evasion (%) 67 Launcher Accuracy 40 Target Analysis 8 Recoil Reduction 4 Particle Charging 25 Kinecelleration 40 Salvage Targeting 4 Offensive Hacking 14 Defensive Hacking 14 Item Schematics ----------------- Hellfire Missile Launcher | -3/Quarantine | Archive Enh. Force Rifle | -3/Quarantine | Archive Adv. Matter Compressor | -3/Quarantine | Archive Centrium Medium Armor Plating | -3/Quarantine | Archive Cld. Antigrav System | -3/Quarantine | Archive Cld. Plasma Rifle | -3/Section 7 | Archive Electron Diverter | -3/Section 7 | Archive Exp. Thermal Defense Suite | -3/Section 7 | Archive Imp. Matter Neutralizer | -3/Section 7 | Archive Prc. Matter Filter | -3/Section 7 | Archive Helical Railgun | -3/Section 7 | Archive Robot Schematics ------------------ S-43 Plague | -3/Quarantine | Archive K-01 Serf | -3/Section 7 | Archive Fabricated ------------ Nothing Repaired ---------- Nothing Studied --------- None Alien Tech Used ----------------- Integrated Reactor Transdimensional Reconstructor Core Reset Matrix Sigix Broadsword Subatomic Replicator Integrated Thermoelectric Network High-powered Transdimensional Reconstructor LRC Energy Well LRC Armor Integrity Redistributor Microwarp Drive Achievements -------------- None Challenges ------------ None Game ------ Seed LobotomyWeightKinecellerator Manual? 0 Play Time 01:29:18 Cumulative 530.6 hours Start 2026.06.23 @ 15:20:32 End 2026.06.23 @ 16:48:55 Sessions 1 Manual Loads 0 Difficulty Rogue Special Mode None Game No. 446 Rogue 410 Adventurer 36 Explorer 0 Win Type - Total 25 Types 10/0/13/0/0/1/1/0/0/0 Lore% 73 Gallery% 85 Achievement% 72 Wizard Run 0 Options --------- Layout 0 ASCII 0 Keyboard 0 Movement Mouse Keybinds 0 Fullscreen 1 Font 18/SmallcapsGlow Map View 76x50 Zoom Use 0% Tactical HUD 1 Map Filters NONE Filters NONE Steam 1 RUN: f2ae6452-e6da-482a-839b-0750f04bfa1f